bitfinex/quotes_SOLUSD_20220118
["timestamp","ask_amount","ask_price","bid_price","bid_amount"]
[1642487066029,44.30245087,140.34,140.28,2.85]
[1642487066232,0.25,140.33,140.28,2.85]
[1642487067031,3.1,140.33,140.28,2.85]
[1642487068230,3.1,140.33,140.25,49.42535429]
[1642487068432,116.10245087,140.34,140.25,2.85]
[1642487068632,13.7933,140.33,140.25,2.85]
[1642487072034,13.7933,140.33,140.26,5.54551893]
[1642487075336,13.7933,140.33,140.26,47.63766413]
[1642487075537,13.5433,140.33,140.26,47.63766413]
[1642487075937,13.5433,140.33,140.26,5.54551893]
[1642487076540,13.5433,140.33,140.27,5.54551893]
[1642487076840,0.25,140.32,140.27,5.54551893]
[1642487077040,56.6391111,140.3,140.25,2.85]
[1642487077240,56.6391111,140.3,140.23,2.851]
[1642487077440,0.25,140.29,140.23,2.851]
[1642487077640,3.101,140.29,140.23,2.851]
[1642487077840,2.851,140.29,140.23,2.851]
[1642487078039,2.851,140.29,140.21,2.851]
[1642487078770,2.851,140.29,140.21,8.851]
[1642487079371,128.4391111,140.3,140.21,2.851]
[1642487079771,0.25,140.29,140.21,2.851]
[1642487080372,128.4391111,140.3,140.21,2.851]
[1642487081372,0.25,140.29,140.21,2.851]
[1642487081575,13.7973,140.29,140.21,2.851]
[1642487081771,13.5473,140.29,140.21,13.5458]
[1642487082373,2.852,140.29,140.21,13.5458]
[1642487082574,45.9445111,140.3,140.22,0.25]
[1642487083576,0.25,140.29,140.22,10.694]
[1642487083776,0.25,140.29,140.23,2.851]
[1642487085779,46.95256001,140.27,140.22,10.694]
[1642487087285,46.95256001,140.27,140.21,13.5458]
[1642487088785,46.95256001,140.27,140.2,10.23]
[1642487088786,0.25,140.26,140.2,13.082]
[1642487089086,57.64926001,140.27,140.2,2.852]
[1642487089284,3.102,140.26,140.2,2.852]
[1642487090286,13.7996,140.26,140.19,470.19339016]
[1642487093690,85.5996,140.26,140.19,470.19339016]
[1642487094890,2.852,140.33,140.2,85.132]
[1642487095102,6.094989,140.35,140.2,85.132]
[1642487095291,6.094989,140.35,140.2,103.62046826]
[1642487095493,6.094989,140.35,140.21,1.25657217]
[1642487095792,48.97357929,140.34,140.23,49.2865689]
[1642487095995,123.62457929,140.34,140.25,10.6921]
[1642487096195,123.62457929,140.34,140.26,2.851]
[1642487096394,123.62457929,140.34,140.26,3.101]
[1642487096593,120.77357929,140.34,140.26,3.101]
[1642487096993,120.77357929,140.34,140.26,2.851]
[1642487097596,131.46587929,140.34,140.26,2.851]
[1642487097796,59.66587929,140.34,140.26,49.65105594]
[1642487097997,48.97357929,140.34,140.26,60.34285594]
[1642487098397,48.97357929,140.34,140.27,0.25]
[1642487098800,48.97357929,140.34,140.27,10.48]
[1642487099199,48.97357929,140.34,140.27,16.48]
[1642487099600,48.97357929,140.34,140.29,10.6892]
[1642487099802,48.97357929,140.34,140.3,2.85]
[1642487101203,48.97357929,140.34,140.29,10.6892]
[1642487102102,2.851,140.37,140.29,10.6892]
[1642487102298,0.25,140.36,140.3,0.25]
[1642487102502,2.85,140.39,140.31,13.5378]
[1642487102703,26.9252,140.4,140.31,13.5378]
[1642487102898,26.9252,140.4,140.32,0.25]
[1642487103099,45.33913035,140.39,140.33,2.849]
[1642487103702,45.33913035,140.39,140.33,45.3876541]
[1642487103901,45.33913035,140.39,140.33,56.0738541]
[1642487104505,4.25976378,140.41,140.33,56.0738541]
[1642487104702,0.25,140.4,140.33,56.0738541]
[1642487104902,0.25,140.4,140.33,62.0738541]
[1642487105504,37.18655963,140.4,140.33,62.0738541]
[1642487106204,36.93655963,140.4,140.33,62.0738541]
[1642487106405,36.93655963,140.4,140.34,0.25]
[1642487106607,36.93655963,140.4,140.35,10.6822]
[1642487106805,36.93655963,140.4,140.36,42.22596059]
[1642487107006,36.0698,140.46,140.36,42.22596059]
[1642487107307,36.0698,140.46,140.35,6.0]
[1642487107507,36.0698,140.46,140.34,41.6072]
[1642487107708,36.0698,140.46,140.35,0.25]
[1642487107907,0.25,140.45,140.37,10.682]
[1642487108306,47.48972753,140.45,140.37,10.682]
[1642487110312,47.48972753,140.45,140.38,2.848]
[1642487110523,47.48972753,140.45,140.38,13.5307]
[1642487110712,47.48972753,140.45,140.38,10.6827]
[1642487111112,47.48972753,140.45,140.38,56.79855654]
[1642487111312,47.48972753,140.45,140.38,10.6827]
[1642487111514,2.848,140.47,140.38,13.5307]
[1642487112443,49.37720318,140.46,140.38,13.5307]
[1642487112643,2.848,140.45,140.38,13.5307]
[1642487113943,49.37720318,140.46,140.38,19.5307]
[1642487115143,49.37720318,140.46,140.39,0.25]
[1642487115345,49.37720318,140.46,140.41,10.68]
[1642487115544,49.37720318,140.46,140.42,2.848]
[1642487116145,49.37720318,140.46,140.41,2.848]
[1642487116345,49.37720318,140.46,140.4,2.848]
[1642487116546,49.37720318,140.46,140.4,10.6806]
[1642487117447,2.848,140.49,140.4,10.6806]
[1642487117448,10.15010569,140.58,140.44,127.87]
[1642487117647,9.65010569,140.58,140.49,1.83886284]
[1642487117849,9.65010569,140.58,140.5,13.326]
[1642487118248,9.65010569,140.58,140.51,39.54461378]
[1642487118445,9.65010569,140.58,140.52,2.846]
[1642487118646,1.36,140.61,140.52,82.424]
[1642487118849,1.36,140.61,140.53,10.23]
[1642487119146,1.36,140.61,140.54,2.845]
[1642487119346,1.36,140.61,140.55,10.23]
[1642487119753,74.645,140.68,140.56,40.09664342]
[1642487119951,74.645,140.68,140.57,13.5118]
[1642487120151,74.645,140.68,140.55,13.074]
[1642487120354,10.23,140.67,140.55,12.63398658]
[1642487120653,74.644,140.66,140.55,12.63398658]
[1642487120853,10.23,140.65,140.55,12.63398658]
[1642487121051,74.644,140.64,140.55,12.63398658]
[1642487121254,43.75942723,140.63,140.55,3.3498949]
[1642487121453,2.845,140.62,140.55,3.3498949]
[1642487122054,2.845,140.62,140.56,3.3498949]
[1642487122654,0.25,140.61,140.56,3.3498949]
[1642487123257,0.25,140.61,140.54,2.845]
[1642487123258,2.845,140.6,140.55,3.3498949]
[1642487123658,0.25,140.59,140.55,3.3498949]
[1642487123858,2.845,140.58,140.55,3.3498949]
[1642487124060,45.01526448,140.57,140.5,20.9029]
[1642487124357,45.26526448,140.57,140.5,23.7489]
[1642487124957,45.26526448,140.57,140.5,13.076]
[1642487124958,71.8,140.56,140.5,13.076]
[1642487125159,2.846,140.55,140.47,13.076]
[1642487125359,8.428,140.56,140.43,10.23]
[1642487125558,0.25,140.54,140.44,2.847]
[1642487125758,2.847,140.53,140.43,2.847]
[1642487125961,42.65988826,140.52,140.43,43.65798786]
[1642487126358,42.65988826,140.52,140.43,54.33678786]
[1642487126557,42.65988826,140.52,140.44,0.25]
[1642487127163,42.65988826,140.52,140.43,43.65798786]
[1642487127961,42.65988826,140.52,140.44,10.6782]
[1642487128358,2.847,140.55,140.45,10.23]
[1642487128558,2.846,140.58,140.45,10.23]
[1642487128760,2.846,140.59,140.46,0.25]
[1642487128958,2.846,140.59,140.48,10.6729]
[1642487129358,39.94831801,140.58,140.48,54.60092944]
[1642487129561,2.846,140.57,140.48,54.60092944]
[1642487129760,3.096,140.57,140.49,2.846]
[1642487130662,3.096,140.57,140.5,10.6734]
[1642487130961,3.096,140.57,140.49,2.846]
[1642487131364,4.4543818,140.57,140.49,2.846]
[1642487132668,3.096,140.57,140.49,1.4876182]
[1642487133167,3.096,140.57,140.47,10.23]
[1642487133564,13.7715,140.57,140.47,20.9059]
[1642487134165,71.8,140.56,140.47,20.9059]
[1642487134368,43.01463893,140.54,140.48,2.846]
[1642487134767,0.25,140.53,140.48,2.846]
[1642487134966,0.25,140.53,140.47,20.9059]
[1642487135167,43.01463893,140.54,140.47,20.9059]
[1642487135367,43.01463893,140.54,140.48,13.521]
[1642487136069,0.25,140.53,140.48,13.521]
[1642487136367,0.25,140.53,140.48,10.675]
[1642487136567,43.01463893,140.54,140.48,10.675]
[1642487138969,43.01463893,140.54,140.48,59.78350121]
[1642487139171,43.01463893,140.54,140.49,2.846]
[1642487139468,43.01463893,140.54,140.49,13.5204]
[1642487139669,43.01463893,140.54,140.46,2.846]
[1642487140072,0.25,140.53,140.46,2.846]
[1642487140271,0.25,140.53,140.46,48.21576556]
[1642487140573,0.25,140.53,140.47,10.6753]
[1642487140773,0.25,140.53,140.48,2.846]
[1642487142072,0.25,140.53,140.47,13.5213]
[1642487142274,0.25,140.53,140.46,2.846]
[1642487143479,0.25,140.53,140.46,13.5225]
[1642487145482,0.25,140.53,140.47,49.55591486]
[1642487145681,0.25,140.53,140.48,10.6751]
[1642487149002,0.25,140.53,140.46,10.676]
[1642487149202,0.25,140.53,140.47,2.847]
[1642487151806,2.02804106,140.51,140.47,2.847]
[1642487152005,37.45714887,140.51,140.47,2.847]
[1642487152709,2.02804106,140.5,140.47,2.847]
[1642487152908,3.03219997,140.49,140.47,2.847]
[1642487155516,48.97402051,140.48,140.47,2.847]
[1642487155719,48.97402051,140.48,140.44,13.5245]
[1642487156218,48.97402051,140.48,140.44,10.6775]
[1642487157219,48.97402051,140.48,140.42,13.5262]
[1642487157419,0.25,140.47,140.41,2.847]
[1642487157620,2.848,140.46,140.39,2.848]
[1642487157823,0.25,140.45,140.39,2.848]
[1642487158319,42.14062272,140.45,140.39,42.77185832]
[1642487158720,42.14062272,140.45,140.39,10.682]
[1642487159322,42.14062272,140.45,140.37,2.848]
[1642487159523,44.98862272,140.45,140.37,2.848]
[1642487159724,42.14062272,140.45,140.37,2.848]
[1642487159925,41.89062272,140.45,140.38,36.68456849]
[1642487160125,29.70704106,140.48,140.39,2.848]
[1642487160327,2.02804106,140.48,140.39,2.848]
[1642487160528,0.25,140.47,140.39,2.848]
[1642487160726,2.02804106,140.48,140.39,8.848]
[1642487160929,2.02804106,140.48,140.4,0.25]
[1642487161125,2.02804106,140.48,140.42,35.73600781]
[1642487161325,2.02804106,140.48,140.42,41.73600781]
[1642487161537,2.02804106,140.48,140.42,35.73600781]
[1642487161726,4.87604106,140.5,140.43,0.25]
[1642487161929,2.02804106,140.5,140.44,2.847]
[1642487162328,2.02804106,140.5,140.44,8.847]
[1642487162528,2.02804106,140.5,140.45,53.59609215]
[1642487162928,2.02804106,140.5,140.45,59.85609215]
[1642487163430,2.02804106,140.53,140.45,59.85609215]
[1642487164656,2.02804106,140.55,140.46,2.847]
[1642487164857,2.02804106,140.55,140.48,10.6713]
[1642487165056,2.02804106,140.55,140.49,2.846]
[1642487165255,2.02804106,140.55,140.48,2.846]
[1642487165456,46.68236907,140.55,140.49,48.2264416]
[1642487165656,46.68236907,140.55,140.48,2.846]
[1642487165857,46.68236907,140.55,140.5,10.6715]
[1642487167559,46.68236907,140.55,140.48,13.5205]
[1642487167959,2.846,140.54,140.48,13.5205]
[1642487168160,3.096,140.54,140.48,2.846]
[1642487168859,2.02804106,140.53,140.48,2.846]
[1642487169061,43.25767825,140.52,140.48,2.846]
[1642487170260,43.25767825,140.52,140.48,10.675]
[1642487175767,43.25767825,140.52,140.49,2.846]
[1642487175969,3.03219997,140.51,140.49,2.846]
[1642487176167,3.03219997,140.51,140.49,5.87819997]
[1642487176367,1.52804106,140.54,140.49,16.55259997]
[1642487176570,1.52804106,140.54,140.49,13.70659997]
[1642487176967,49.09065663,140.54,140.49,13.70659997]
[1642487177172,47.56261557,140.54,140.49,16.55259997]
[1642487178469,47.56261557,140.54,140.49,5.87819997]
[1642487179470,47.56261557,140.54,140.49,3.03219997]
[1642487179675,0.25,140.53,140.49,3.03219997]
[1642487179871,0.25,140.53,140.47,10.6752]
[1642487181974,10.9271,140.53,140.46,2.846]
[1642487182771,10.9271,140.53,140.46,47.06657642]
[1642487182975,0.25,140.53,140.46,57.74317642]
[1642487190289,2.847,140.52,140.46,57.74317642]
[1642487190485,2.847,140.52,140.46,54.89717642]
[1642487190686,41.48314363,140.51,140.46,54.89717642]
[1642487193288,41.48314363,140.51,140.46,44.22057642]
[1642487193690,0.25,140.51,140.46,44.22057642]
[1642487194890,0.25,140.51,140.44,10.6776]
[1642487195090,10.9286,140.51,140.43,37.0255]
[1642487195891,82.7286,140.51,140.43,13.5259]
[1642487197495,82.7286,140.51,140.43,2.847]
[1642487197496,92.9586,140.51,140.43,2.847]
[1642487197695,2.847,140.5,140.43,2.847]
[1642487197893,10.6819,140.48,140.43,2.847]
[1642487198092,13.5289,140.48,140.43,2.847]
[1642487198295,46.37156964,140.47,140.43,2.847]
[1642487198495,45.87156964,140.47,140.43,2.847]
[1642487199494,45.87156964,140.47,140.43,2.4610526]
[1642487199695,56.55356964,140.47,140.43,2.4610526]
[1642487200296,0.25,140.46,140.43,2.4610526]
[1642487200496,3.03219997,140.45,140.4,2.848]
[1642487201098,3.03219997,140.45,140.41,39.13430202]
[1642487201300,3.03219997,140.45,140.42,2.848]
[1642487202700,3.03219997,140.45,140.43,3.03219997]
[1642487203304,44.19674676,140.46,140.43,3.03219997]
[1642487204201,3.03219997,140.45,140.43,3.03219997]
[1642487205003,3.03219997,140.45,140.41,10.6805]
[1642487207037,3.03219997,140.45,140.42,2.848]
[1642487207233,3.03219997,140.45,140.42,13.5276]
[1642487207433,3.03219997,140.45,140.42,19.5276]
[1642487207633,3.03219997,140.45,140.43,43.37309519]
[1642487207834,54.58960809,140.49,140.44,3.03219997]
[1642487209937,57.43660809,140.49,140.44,3.03219997]
[1642487210139,0.25,140.48,140.43,43.37309519]
[1642487211140,57.43660809,140.49,140.43,43.37309519]
[1642487211537,57.43660809,140.49,140.42,10.6796]
[1642487211736,54.58960809,140.49,140.42,10.6796]
[1642487213443,0.25,140.48,140.42,10.6796]
[1642487214741,0.25,140.48,140.41,2.847]
[1642487215141,10.9309,140.48,140.41,2.847]
[1642487216144,82.7309,140.48,140.41,2.847]
[1642487218345,10.6809,140.48,140.41,56.01273952]
[1642487218543,46.75660809,140.49,140.41,56.01273952]
[1642487218745,4.05746597,140.51,140.42,0.25]
[1642487218944,4.05746597,140.51,140.43,2.847]
[1642487219543,38.84736597,140.52,140.43,2.847]
[1642487219745,48.49016242,140.51,140.44,45.25877747]
[1642487220043,59.16876242,140.51,140.45,2.847]
[1642487220243,62.01576242,140.51,140.44,10.6775]
[1642487220647,0.25,140.5,140.44,10.6775]
[1642487221353,0.25,140.5,140.43,2.847]
[1642487221545,0.25,140.5,140.42,72.91408722]
[1642487221546,10.6792,140.5,140.42,72.91408722]
[1642487221746,38.09860288,140.48,140.42,72.91408722]
[1642487221945,38.09860288,140.48,140.42,10.679]
[1642487223345,99.5384,140.5,140.43,44.8952388]
[1642487223546,96.6914,140.5,140.43,55.5738388]
[1642487223745,0.25,140.49,140.43,55.5738388]
[1642487224346,0.25,140.49,140.43,10.6786]
[1642487225347,44.07780468,140.49,140.43,10.6786]
[1642487226749,46.92480468,140.49,140.43,10.6786]
[1642487227549,46.67480468,140.49,140.43,10.6786]
[1642487227751,43.82780468,140.49,140.44,2.847]
[1642487228351,107.3707,140.5,140.44,2.847]
[1642487229454,156.89877548,140.5,140.44,2.847]
[1642487231859,10.6793,140.5,140.45,35.99905176]
[1642487232059,4.05746597,140.53,140.46,2.847]
[1642487232287,4.05746597,140.53,140.46,3.097]
[1642487232894,37.61876594,140.53,140.46,3.097]
[1642487233087,37.61876594,140.53,140.46,2.847]
[1642487233692,37.61876594,140.53,140.46,13.5232]
[1642487235192,48.29596594,140.53,140.46,2.847]
[1642487235392,3.097,140.52,140.44,13.5244]
[1642487236397,2.847,140.52,140.44,13.5244]
[1642487236597,48.29596594,140.53,140.44,13.5244]
[1642487236796,0.25,140.52,140.44,13.5244]
[1642487241705,37.61876594,140.53,140.44,13.5244]
[1642487241907,38.76166597,140.55,140.45,0.25]
[1642487242107,38.76166597,140.55,140.48,10.675]
[1642487242108,4.05746597,140.55,140.48,10.675]
[1642487242308,4.05746597,140.55,140.49,2.846]
[1642487242911,4.05746597,140.55,140.49,50.6252021]
[1642487243110,4.05746597,140.55,140.49,2.846]
[1642487243443,0.25,140.54,140.49,2.846]
[1642487243642,3.096,140.54,140.46,13.5221]
[1642487244042,42.53095113,140.53,140.46,13.5221]
[1642487244242,53.20825113,140.53,140.46,13.5221]
[1642487245443,53.20825113,140.53,140.46,2.846]
[1642487246345,42.53095113,140.53,140.46,2.846]
[1642487246545,42.53095113,140.53,140.46,13.5223]
[1642487247151,42.53095113,140.53,140.47,38.15420348]
[1642487248549,42.53095113,140.53,140.47,48.82940348]
[1642487249949,6.90446597,140.56,140.47,48.82940348]
[1642487250149,6.90446597,140.56,140.5,10.6727]
[1642487250150,4.05746597,140.56,140.5,10.6727]
[1642487250550,4.05746597,140.56,140.5,13.5187]
[1642487250750,2.846,140.59,140.5,13.7787]
[1642487250751,4.05746597,140.57,140.5,13.7787]
[1642487250953,4.05746597,140.57,140.51,45.78726356]
[1642487251151,4.05746597,140.57,140.52,2.846]
[1642487252553,22.6149,140.61,140.52,13.5157]
[1642487252753,0.25,140.6,140.52,13.5157]
[1642487253353,36.05801936,140.6,140.52,13.5157]
[1642487254355,35.80801936,140.6,140.53,0.25]
[1642487254556,35.80801936,140.6,140.54,10.6705]
[1642487255757,35.80801936,140.6,140.52,36.0617]
[1642487255958,35.80801936,140.6,140.53,0.25]
[1642487257561,46.48001936,140.6,140.53,0.25]
[1642487260361,118.28001936,140.6,140.53,0.25]
[1642487260562,0.25,140.59,140.52,10.6715]
[1642487260761,10.9226,140.59,140.52,10.6715]
[1642487260965,10.9226,140.59,140.5,37.3311]
[1642487261160,33.5055,140.59,140.51,0.25]
[1642487261563,105.3055,140.59,140.5,26.6581]
[1642487261762,105.3055,140.59,140.5,2.845]
[1642487261962,105.3055,140.59,140.5,13.5186]
[1642487262201,107.09455272,140.59,140.5,13.5186]
[1642487262364,117.32455272,140.59,140.5,2.845]
[1642487262965,2.846,140.58,140.47,25.7801]
[1642487263264,10.6747,140.56,140.48,10.6745]
[1642487263470,2.846,140.55,140.48,10.6745]
[1642487263665,3.096,140.55,140.48,10.6745]
[1642487263866,40.20847155,140.54,140.48,10.6745]
[1642487264964,40.20847155,140.54,140.49,2.846]
[1642487265165,40.20847155,140.54,140.5,10.673]
[1642487266970,40.20847155,140.54,140.51,0.25]
[1642487267168,3.03219997,140.53,140.52,2.846]
[1642487268369,40.20847155,140.54,140.52,5.87819997]
[1642487268668,43.24067152,140.54,140.51,3.096]
[1642487270771,43.24067152,140.54,140.51,2.846]
[1642487271374,3.03219997,140.54,140.52,3.03219997]
[1642487271572,23.2988,140.57,140.52,3.03219997]
[1642487272172,23.2988,140.57,140.5,10.673]
[1642487272372,35.47303934,140.56,140.5,10.673]
[1642487275785,35.47303934,140.56,140.51,2.846]
[1642487275981,35.47303934,140.56,140.5,10.673]
[1642487276383,0.25,140.55,140.49,2.846]
[1642487276579,0.25,140.55,140.48,13.5205]
[1642487276780,0.25,140.55,140.48,19.5205]
[1642487277611,0.25,140.55,140.48,13.5205]
[1642487279213,10.9255,140.55,140.48,13.5205]
[1642487281416,82.7255,140.55,140.48,13.5205]
[1642487283618,82.7255,140.55,140.48,2.846]
[1642487283818,85.5715,140.55,140.46,2.846]
[1642487284018,108.7809,140.55,140.46,2.846]
[1642487284618,10.23,140.54,140.46,2.846]
[1642487284824,10.6801,140.52,140.46,2.846]
[1642487285017,2.847,140.51,140.46,2.846]
[1642487285217,3.097,140.51,140.46,2.846]
[1642487285618,4.88605272,140.51,140.46,2.846]
[1642487286020,29.0,140.49,140.41,3.84550054]
[1642487286223,29.0,140.49,140.39,6.69250054]
[1642487286224,10.6818,140.47,140.39,6.69250054]
[1642487286620,0.25,140.46,140.39,3.84550054]
[1642487287523,0.25,140.46,140.38,47.16347449]
[1642487288629,46.46544665,140.44,140.39,4.5736675]
[1642487289528,46.46544665,140.44,140.38,53.99997395]
[1642487289726,46.46544665,140.44,140.38,13.53]
[1642487291529,46.46544665,140.44,140.38,2.848]
[1642487291726,52.10044665,140.44,140.38,2.848]
[1642487291926,62.78414665,140.44,140.38,2.848]
[1642487294333,0.25,140.43,140.38,2.848]
[1642487294531,10.9344,140.43,140.38,2.848]
[1642487294934,13.7824,140.43,140.38,2.848]
[1642487295734,51.98959658,140.41,140.34,14.53070054]
[1642487295962,59.23259658,140.41,140.34,3.84550054]
[1642487296135,0.25,140.4,140.34,3.84550054]
[1642487297434,72.05,140.4,140.35,2.02922332]
[1642487297633,82.7368,140.4,140.35,2.02922332]
[1642487300935,10.9368,140.4,140.35,2.02922332]
[1642487301136,10.9368,140.4,140.35,46.30262848]
[1642487301336,0.25,140.4,140.35,46.30262848]
[1642487301935,0.25,140.4,140.35,44.27340516]
[1642487302135,3.099,140.41,140.35,44.27340516]
[1642487302335,0.25,140.41,140.35,44.27340516]
[1642487303037,0.25,140.41,140.35,46.30262848]
[1642487303636,2.849,140.42,140.36,0.25]
[1642487303837,69.82858497,140.43,140.38,45.76941834]
[1642487304037,46.54688497,140.43,140.38,45.76941834]
[1642487304638,46.54688497,140.43,140.37,4.87822332]
[1642487304837,10.6847,140.43,140.37,4.87822332]
[1642487305037,0.25,140.42,140.37,4.87822332]
[1642487305440,37.5928,140.45,140.37,15.56172332]
[1642487305637,37.5928,140.45,140.37,12.71272332]
[1642487305837,0.25,140.44,140.38,41.49708297]
[1642487306842,0.25,140.44,140.38,2.848]
[1642487307841,0.25,140.44,140.39,43.85636687]
[1642487308241,0.25,140.44,140.38,4.87722332]
[1642487308441,0.25,140.44,140.38,2.02922332]
[1642487309343,0.25,140.44,140.38,38.42480612]
[1642487310345,10.934,140.44,140.38,2.02922332]
[1642487310544,82.734,140.44,140.38,2.02922332]
[1642487310973,2.848,140.43,140.38,2.02922332]
[1642487311176,37.59452647,140.42,140.37,4.87722332]
[1642487311372,0.25,140.42,140.37,4.87722332]
[1642487311974,0.25,140.42,140.37,2.848]
[1642487312371,0.25,140.42,140.36,86.92365625]
[1642487312571,0.25,140.42,140.37,0.25]
[1642487312771,0.25,140.42,140.38,2.849]
[1642487313974,0.25,140.42,140.37,5.12822332]
[1642487314172,8.829,140.42,140.37,4.87822332]
[1642487314577,8.829,140.42,140.37,2.02922332]
[1642487315577,19.5145,140.42,140.37,2.02922332]
[1642487316176,19.5145,140.42,140.36,2.02922332]
[1642487316678,8.829,140.42,140.36,2.02922332]
[1642487316877,0.25,140.42,140.36,2.02922332]
[1642487317277,0.25,140.43,140.36,2.02922332]
[1642487318477,10.9347,140.43,140.37,2.849]
[1642487318881,10.9347,140.43,140.38,39.78220261]
[1642487319683,0.25,140.43,140.38,39.78220261]
[1642487319882,0.25,140.44,140.38,39.78220261]
[1642487321186,1.96988694,140.46,140.39,0.25]
[1642487321388,1.96988694,140.46,140.4,2.848]
[1642487321786,1.96988694,140.46,140.41,0.25]
[1642487321988,1.96988694,140.46,140.42,2.848]
[1642487323190,25.14148694,140.5,140.42,2.848]
[1642487323389,0.25,140.49,140.42,2.848]
[1642487323590,0.25,140.49,140.42,13.5269]
[1642487326590,0.25,140.49,140.42,19.5269]
[1642487326792,2.21988694,140.49,140.42,19.5269]
[1642487327594,1.96988694,140.49,140.42,19.5269]
[1642487327793,1.96988694,140.49,140.44,10.677]
[1642487327994,1.96988694,140.49,140.44,13.524]
[1642487328596,1.96988694,140.49,140.45,37.77220617]
[1642487328796,1.96988694,140.51,140.46,10.6766]
[1642487328997,1.96988694,140.51,140.46,13.5236]
[1642487329396,1.96988694,140.51,140.47,0.25]
[1642487329596,1.96988694,140.51,140.48,2.847]
[1642487329798,1.96988694,140.52,140.49,3.28219997]
[1642487330000,1.96988694,140.52,140.49,13.95649997]
[1642487330397,1.96988694,140.52,140.49,59.56970444]
[1642487330597,1.96988694,140.54,140.49,59.56970444]
[1642487331802,3.49457966,140.55,140.49,59.56970444]
[1642487332806,0.25,140.54,140.49,59.56970444]
[1642487333004,3.49457966,140.55,140.49,59.56970444]
[1642487333203,3.49457966,140.55,140.5,2.846]
[1642487335107,6.34057966,140.55,140.5,2.846]
[1642487335305,0.25,140.54,140.5,2.846]
[1642487335906,2.21988694,140.54,140.5,2.846]
[1642487336109,2.21988694,140.54,140.49,2.846]
[1642487336509,40.66689758,140.53,140.49,2.846]
[1642487337011,2.21988694,140.54,140.49,2.846]
[1642487337231,2.21988694,140.54,140.49,13.5204]
[1642487337935,39.19866783,140.54,140.49,13.5204]
[1642487339638,39.19866783,140.54,140.49,10.6744]
[1642487340042,1.96988694,140.54,140.5,0.25]
[1642487340243,1.96988694,140.54,140.5,10.6736]
[1642487340445,1.96988694,140.54,140.51,71.8]
[1642487340640,8.694e-05,140.54,140.52,3.03219997]
[1642487340842,8.694e-05,140.54,140.52,9.54219997]
[1642487341041,8.694e-05,140.54,140.52,55.6943975]
[1642487341242,2.846,140.56,140.52,56.65569254]
[1642487341540,28.72276597,140.62,140.52,67.32559254]
[1642487341741,4.05746597,140.62,140.53,2.845]
[1642487342140,4.05746597,140.62,140.54,0.25]
[1642487342342,26.93266597,140.64,140.55,2.845]
[1642487342543,26.93266597,140.64,140.56,42.88622892]
[1642487342742,26.93266597,140.64,140.57,2.844]
[1642487342941,0.25,140.63,140.57,2.844]
[1642487343542,0.25,140.63,140.57,13.5122]
[1642487344242,46.98120376,140.63,140.57,13.5122]
[1642487344442,29.77666597,140.64,140.57,13.5122]
[1642487344741,4.05746597,140.64,140.57,13.5122]
[1642487345144,4.05746597,140.64,140.57,19.5122]
[1642487345344,4.05746597,140.64,140.59,10.6654]
[1642487345543,4.05746597,140.64,140.61,40.269385]
[1642487345742,4.05746597,140.65,140.62,3.03219997]
[1642487346747,24.2424,140.67,140.62,3.03219997]
[1642487346748,28.29986597,140.67,140.62,3.03219997]
[1642487347049,42.15800386,140.66,140.62,3.03219997]
[1642487347248,42.40800386,140.66,140.62,3.03219997]
[1642487347549,42.40800386,140.66,140.61,10.6653]
[1642487349749,42.15800386,140.66,140.61,10.6653]
[1642487350351,0.25,140.65,140.59,13.5102]
[1642487357262,4.30746597,140.65,140.59,13.5102]
[1642487358757,4.30746597,140.65,140.59,10.6662]